{"text_format":"3","workbook":"xlsx","n_sheets":2,"sheets":["PRICING SCHEDULE","Sheet1"],"not_rendered":{"images":1,"defined_names":2},"read":"whole","date_system":"1900"}

{"sheet":"PRICING SCHEDULE","index":0,"n_rows":36,"n_cols":17,"rows_kept":36,"merged":[[12,2,12,3],[13,2,13,3],[13,5,15,5],[14,2,14,3],[15,2,15,3],[17,4,17,6],[17,7,17,9],[17,10,17,12],[19,1,19,4],[32,1,35,1],[32,2,32,3],[32,4,32,5],[33,2,33,3],[34,2,34,3],[34,4,34,5],[35,2,35,3],[35,4,35,5]]}
[null,"SUPPLY CHAIN MANAGEMENT"]
[null,"Pricing schedule"]
["RFx No","RFB 3278-2026 "]
["RFx Title"," REQUEST FOR BID  FOR THE RENEWAL OF RHEL SUBSCRIPTION LICENSES FOR A PERIOD OF 3 YEARS"]
["Bidder Name "]
[]
["1. INSTRUCTION FOR COMPLETING THE PRICING SCHEDULE"]
["(a)  THIS PRICING SCHEDULE MUST BE SUBMITTED SEPARATELY FROM THE TECHNICAL RESPONSE, failing which the BID may be DISQUALIFIED."]
["(b)  Bidder must complete/enter YELLOW cells only"]
["(c)  Unit and Line prices must be VAT EXCLUSIVE and in South African Rand (ZAR) currency."]
["(e) The price must include all cost to deliver the goods or render the service, including all applicable taxes, duty fees, logistics/delivery, storage, labour, overtime and subsistance and travel"]
["(f)  Prices that are dependent on Rate of Exchange (ROE) must use ROE indicated below, then enter in Column \"Forex %\" the percentage of the price that is ROE dependent (0% means the price is not ROE dependent)"]
[null,"Foreign currency","South African Rand (ZAR) exchange rate "]
[null,"1 US Dollar",{"v":16.47,"d":"R16.47"},null,null,"Mark with an X, which ROE is applicable"]
[null,"1 Euro",{"v":18.98,"d":"R18.98"}]
[null,"1 Pound (UK)",{"v":22.17,"d":"R22.17"}]
[]
[{"$nulls":4},"YEAR 1",null,null,"YEAR 2",null,null,"YEAR 3",null,null,"TOTAL"]
["Item No","Goods/Service description","SKU","Forex %","Qty ","Unit Price \n(Excl VAT)","Line Price Y1","Qty","Unit Price \n(Excl VAT)","Line Price Y2","Qty","Unit Price \n(Excl VAT)","Line Price Y3","Line Price Term \n(Excl VAT)","Forex Price portion","BRAND / MODEL","Price clarification comment"]
[1,"[GOODS/SERVICE PACKAGE 1]",{"$nulls":4}," ",null,null," ",null,null," "," "," "]
["1.1","Red Hat Runtimes, Premium (16 Cores or 32 vCPUs)","MW00275",{"v":0,"d":"0%"},2,0,{"$f":"E21*F21","v":0},2,0,{"$f":"H21*I21","v":0},2,0,{"$f":"K21*L21","v":0},{"$f":"SUM(G21,J21,M21)","v":0},{"$f":"D21*N21","v":0}]
["1.2","Red Hat Jboss Enterprise Application Platform ELS Program, 16-Core Standard","MW2122821",{"v":0,"d":"0%"},2,0,{"$f":"E22*F22","v":0},2,0,0,2,0,0,{"$f":"SUM(G22,J22,M22)","v":0},0]
["1.3","Red Hat Enterprise Linux for Virtual Datacenters for SAP","RH00767",{"v":0,"d":"0%"},10,0,0,10,0,0,10,0,0,0,0]
["1.4","Red Hat Ansible Automation Platform, Premium (100","MCT3694",{"v":0,"d":"0%"},1,0,0,1,0,0,1,0,0,0,0]
["1.5","Red Hat Enterprise Linux for SAP Solutions, Premium (Physical or Virtual Nodes)","RH00763",{"v":0,"d":"0%"},5,0,0,5,0,0,5,0,0,0,0]
["1.6","Red Hat Enterprise Linux Extended Life Cycle Support","RH00271",{"v":0,"d":"0%"},10,0,0,10,0,0,10,0,0,0,0]
["1.7","Red Hat Enterprise Linux with Smart Virtualization and","MCT2989",{"v":0,"d":"0%"},4,0,{"$f":"E27*F27","v":0},4,0,0,4,0,0,0,0]
["1.8","Red Hat OpenShift Virtualisation Engine (Bare Metal Node) Premium (1-2 sockets)","MW03815",{"v":0,"d":"0%"},10,0,0,10,0,0,10,0,0,0,0]
[null,"TOTAL BID PRICE  (EXCL VAT)",{"$nulls":4},{"$f":"SUM(G21:G28)","v":0},null,null,{"$f":"SUM(J21:J28)","v":0},null,null,{"$f":"SUM(M21:M28)","v":0},{"$f":"SUM(N21:N28)","v":0}]
[null,"VAT (@15%)",{"$nulls":4},{"$f":"G29*0.15","v":0},null,null,{"$f":"J29*0.15","v":0},null,null,{"$f":"M29*0.15","v":0},{"$f":"N29*0.15","v":0}]
[null,"TOTAL  BID PRICE (INCL VAT)",{"$nulls":4},{"$f":"G29+G30","v":0},null,null,{"$f":"J29+J30","v":0},null,null,{"$f":"M29+M30","v":0},{"$f":"N29+N30","v":0}]
[]
[null,"I, the bidder, confirm that the price(s) and rate(s) quoted cover all the goods and/or works specified in the bidding documents; that the price(s) or rate(s) cover all my obligations and I accept that any mistakes regarding price(s), rate(s) or calculations will be at my own risk.\n[Note: First convert to PDF, then add signature]"]
[null,null,"Name",null,"Capacity"]
[]
[null,null,"Signature (above)",null,"Date"]

{"sheet":"Sheet1","index":1,"n_rows":13,"n_cols":5,"rows_kept":13,"merged":[[3,1,4,1],[3,3,4,3],[3,4,4,4],[5,1,6,1],[5,3,6,3],[5,4,6,4],[8,1,9,1],[8,3,9,3],[8,4,9,4],[10,1,11,1],[10,3,11,3],[10,4,11,4]]}
[null,"SKU","Description","QTY","Term"]
[1,"MW00275",null,null,"36 Months"]
[2,"MW2122821",null,null,"36 Months"]
[3,"RH00767",null,null,"36 Months"]
[4]
[5,"MCT3694",null,null,"36 Months"]
[6]
[7,"RH00763",null,null,"36 Months"]
[8,"RH00271",null,null,"36 Months"]
[9]
[10,"MCT2989",null,null,"36 Months"]
[11]
[12,"MW03815",null,null,"36 Months"]